{"text_format":"1","workbook":"xlsx","n_sheets":3,"sheets":["Varaston tavaraluettelo","Varastopoimintaluettelo","Paikkahaku"],"not_rendered":{"charts":0,"images":0,"macros":1,"external_links":0,"defined_names":5,"comments":0,"pivot_tables":0},"unopened":[],"bounds":{"document_bytes":16777216,"sheet_cells":100000,"rows_first":2000,"rows_last":500,"rows_between":2000,"halvings":0,"cell_chars":16384,"cell_head_chars":4096},"cells_cut":0,"cells_raw":0,"read":"whole","date_system":"1900"}

{"sheet":"Varaston tavaraluettelo","index":0,"n_rows":15,"n_cols":11,"rows_kept":15,"cut":false,"hidden":false,"merged":[]}
[null,"VARASTON TAVARALUETTELO"]
[null,"VARASTON KOKONAISARVO:","VARASTONIMIKKEET:","PAIKKAMÄÄRÄ:","VARASTOPOIMINTALUETTELO","PAIKKAHAKU"]
[null,{"$f":"SUM(Varastoluettelo[VARASTOARVO])","v":4649},{"$f":"COUNTA(Varastoluettelo[KUVAUS])","v":11},{"$f":"SUMPRODUCT((1/COUNTIF(Varastoluettelo[PAIKKANRO],Varastoluettelo[PAIKKANRO]&\"\")))","v":6}]
[null,"VARASTOINTIYKSIKKÖ","KUVAUS","PAIKKANRO","SIJAINTI","YKSIKKÖ","MÄÄRÄ","TILAUSMÄÄRÄ","KUSTANNUS","VARASTOARVO","TILAUS"]
[null,"SP7875","Tuote 1","T345",{"$f":"IFERROR(VLOOKUP(Varastoluettelo[[#This Row],[PAIKKANRO]],Paikkahaku[],3,FALSE),\"\")","v":"Rivi 2, paikka 1"},"Yksittäinen",20,10,30,{"$f":"Varastoluettelo[[#This Row],[MÄÄRÄ]]*Varastoluettelo[[#This Row],[KUSTANNUS]]","v":600},{"$f":"IFERROR(IF(Varastoluettelo[[#This Row],[MÄÄRÄ]]<=Varastoluettelo[[#This Row],[TILAUSMÄÄRÄ]],1,0),0)","v":0}]
[null,"TR87680","Nimike 2","T345",{"$f":"IFERROR(VLOOKUP(Varastoluettelo[[#This Row],[PAIKKANRO]],Paikkahaku[],3,FALSE),\"\")","v":"Rivi 2, paikka 1"},"Yksittäinen",30,15,40,{"$f":"Varastoluettelo[[#This Row],[MÄÄRÄ]]*Varastoluettelo[[#This Row],[KUSTANNUS]]","v":1200},{"$f":"IFERROR(IF(Varastoluettelo[[#This Row],[MÄÄRÄ]]<=Varastoluettelo[[#This Row],[TILAUSMÄÄRÄ]],1,0),0)","v":0}]
[null,"MK676554","Nimike 3","T5789",{"$f":"IFERROR(VLOOKUP(Varastoluettelo[[#This Row],[PAIKKANRO]],Paikkahaku[],3,FALSE),\"\")","v":"Rivi 1, paikka 1"},"Yksittäinen",10,5,5,{"$f":"Varastoluettelo[[#This Row],[MÄÄRÄ]]*Varastoluettelo[[#This Row],[KUSTANNUS]]","v":50},{"$f":"IFERROR(IF(Varastoluettelo[[#This Row],[MÄÄRÄ]]<=Varastoluettelo[[#This Row],[TILAUSMÄÄRÄ]],1,0),0)","v":0}]
[null,"YE98767","Nimike 4","T9876",{"$f":"IFERROR(VLOOKUP(Varastoluettelo[[#This Row],[PAIKKANRO]],Paikkahaku[],3,FALSE),\"\")","v":"Rivi 3, paikka 2"},"Laatikko (10 kpl)",40,10,15,{"$f":"Varastoluettelo[[#This Row],[MÄÄRÄ]]*Varastoluettelo[[#This Row],[KUSTANNUS]]","v":600},{"$f":"IFERROR(IF(Varastoluettelo[[#This Row],[MÄÄRÄ]]<=Varastoluettelo[[#This Row],[TILAUSMÄÄRÄ]],1,0),0)","v":0}]
[null,"XR23423","Nimike 5","T098",{"$f":"IFERROR(VLOOKUP(Varastoluettelo[[#This Row],[PAIKKANRO]],Paikkahaku[],3,FALSE),\"\")","v":"Rivi 3, paikka 1"},"Yksittäinen",12,10,26,{"$f":"Varastoluettelo[[#This Row],[MÄÄRÄ]]*Varastoluettelo[[#This Row],[KUSTANNUS]]","v":312},{"$f":"IFERROR(IF(Varastoluettelo[[#This Row],[MÄÄRÄ]]<=Varastoluettelo[[#This Row],[TILAUSMÄÄRÄ]],1,0),0)","v":0}]
[null,"PW98762","Nimike 6","T345",{"$f":"IFERROR(VLOOKUP(Varastoluettelo[[#This Row],[PAIKKANRO]],Paikkahaku[],3,FALSE),\"\")","v":"Rivi 2, paikka 1"},"Yksittäinen",7,10,50,{"$f":"Varastoluettelo[[#This Row],[MÄÄRÄ]]*Varastoluettelo[[#This Row],[KUSTANNUS]]","v":350},{"$f":"IFERROR(IF(Varastoluettelo[[#This Row],[MÄÄRÄ]]<=Varastoluettelo[[#This Row],[TILAUSMÄÄRÄ]],1,0),0)","v":1}]
[null,"BM87684","Nimike 7","T349",{"$f":"IFERROR(VLOOKUP(Varastoluettelo[[#This Row],[PAIKKANRO]],Paikkahaku[],3,FALSE),\"\")","v":"Rivi 1, paikka 2"},"Yksittäinen",10,5,10,{"$f":"Varastoluettelo[[#This Row],[MÄÄRÄ]]*Varastoluettelo[[#This Row],[KUSTANNUS]]","v":100},{"$f":"IFERROR(IF(Varastoluettelo[[#This Row],[MÄÄRÄ]]<=Varastoluettelo[[#This Row],[TILAUSMÄÄRÄ]],1,0),0)","v":0}]
[null,"BH67655","Nimike 8","T5789",{"$f":"IFERROR(VLOOKUP(Varastoluettelo[[#This Row],[PAIKKANRO]],Paikkahaku[],3,FALSE),\"\")","v":"Rivi 1, paikka 1"},"Yksittäinen",19,10,3,{"$f":"Varastoluettelo[[#This Row],[MÄÄRÄ]]*Varastoluettelo[[#This Row],[KUSTANNUS]]","v":57},{"$f":"IFERROR(IF(Varastoluettelo[[#This Row],[MÄÄRÄ]]<=Varastoluettelo[[#This Row],[TILAUSMÄÄRÄ]],1,0),0)","v":0}]
[null,"WT98768","Nimike 9","T9875",{"$f":"IFERROR(VLOOKUP(Varastoluettelo[[#This Row],[PAIKKANRO]],Paikkahaku[],3,FALSE),\"\")","v":"Rivi 2, paikka 2"},"Pakkaus (5 kpl)",20,30,14,{"$f":"Varastoluettelo[[#This Row],[MÄÄRÄ]]*Varastoluettelo[[#This Row],[KUSTANNUS]]","v":280},{"$f":"IFERROR(IF(Varastoluettelo[[#This Row],[MÄÄRÄ]]<=Varastoluettelo[[#This Row],[TILAUSMÄÄRÄ]],1,0),0)","v":1}]
[null,"TS3456","Nimike 10","T349",{"$f":"IFERROR(VLOOKUP(Varastoluettelo[[#This Row],[PAIKKANRO]],Paikkahaku[],3,FALSE),\"\")","v":"Rivi 1, paikka 2"},"Yksittäinen",15,8,60,{"$f":"Varastoluettelo[[#This Row],[MÄÄRÄ]]*Varastoluettelo[[#This Row],[KUSTANNUS]]","v":900},{"$f":"IFERROR(IF(Varastoluettelo[[#This Row],[MÄÄRÄ]]<=Varastoluettelo[[#This Row],[TILAUSMÄÄRÄ]],1,0),0)","v":0}]
[null,"WDG123","Nimike 11","T349",{"$f":"IFERROR(VLOOKUP(Varastoluettelo[[#This Row],[PAIKKANRO]],Paikkahaku[],3,FALSE),\"\")","v":"Rivi 1, paikka 2"},"Yksittäinen",25,15,8,{"$f":"Varastoluettelo[[#This Row],[MÄÄRÄ]]*Varastoluettelo[[#This Row],[KUSTANNUS]]","v":200},{"$f":"IFERROR(IF(Varastoluettelo[[#This Row],[MÄÄRÄ]]<=Varastoluettelo[[#This Row],[TILAUSMÄÄRÄ]],1,0),0)","v":0}]

{"sheet":"Varastopoimintaluettelo","index":1,"n_rows":9,"n_cols":9,"rows_kept":9,"cut":false,"hidden":false,"merged":[]}
[null,"VARASTOPOIMINTALUETTELO"]
[null,null,"VARASTOLUETTELO"]
[]
[null,"TIL.NRO","VARASTOINTIYKSIKKÖ","POIMINTAMÄÄRÄ","KÄYTETTÄVISSÄ OLEVA MÄÄRÄ","NIMIKKEEN KUVAUS","YKSIKKÖ","PAIKKANRO","SIJAINTI"]
[null,"TP001-1","SP7875",3,{"$f":"IFERROR(VLOOKUP(Varastopoimintaluettelo[VARASTOINTIYKSIKKÖ],Varastoluettelo[],6,FALSE),\"\")","v":20},{"$f":"IFERROR(VLOOKUP(Varastopoimintaluettelo[VARASTOINTIYKSIKKÖ],Varastoluettelo[],2,FALSE),\"\")","v":"Tuote 1"},{"$f":"IFERROR(VLOOKUP(Varastopoimintaluettelo[VARASTOINTIYKSIKKÖ],Varastoluettelo[],5,FALSE),\"\")","v":"Yksittäinen"},{"$f":"IFERROR(VLOOKUP(Varastopoimintaluettelo[VARASTOINTIYKSIKKÖ],Varastoluettelo[],3,FALSE),\"\")","v":"T345"},{"$f":"IFERROR(VLOOKUP(Varastopoimintaluettelo[VARASTOINTIYKSIKKÖ],Varastoluettelo[],4,FALSE),\"\")","v":"Rivi 2, paikka 1"}]
[null,"TP001-1","YE98767",1,{"$f":"IFERROR(VLOOKUP(Varastopoimintaluettelo[VARASTOINTIYKSIKKÖ],Varastoluettelo[],6,FALSE),\"\")","v":40},{"$f":"IFERROR(VLOOKUP(Varastopoimintaluettelo[VARASTOINTIYKSIKKÖ],Varastoluettelo[],2,FALSE),\"\")","v":"Nimike 4"},{"$f":"IFERROR(VLOOKUP(Varastopoimintaluettelo[VARASTOINTIYKSIKKÖ],Varastoluettelo[],5,FALSE),\"\")","v":"Laatikko (10 kpl)"},{"$f":"IFERROR(VLOOKUP(Varastopoimintaluettelo[VARASTOINTIYKSIKKÖ],Varastoluettelo[],3,FALSE),\"\")","v":"T9876"},{"$f":"IFERROR(VLOOKUP(Varastopoimintaluettelo[VARASTOINTIYKSIKKÖ],Varastoluettelo[],4,FALSE),\"\")","v":"Rivi 3, paikka 2"}]
[null,"TP001-1","BM87684",2,{"$f":"IFERROR(VLOOKUP(Varastopoimintaluettelo[VARASTOINTIYKSIKKÖ],Varastoluettelo[],6,FALSE),\"\")","v":10},{"$f":"IFERROR(VLOOKUP(Varastopoimintaluettelo[VARASTOINTIYKSIKKÖ],Varastoluettelo[],2,FALSE),\"\")","v":"Nimike 7"},{"$f":"IFERROR(VLOOKUP(Varastopoimintaluettelo[VARASTOINTIYKSIKKÖ],Varastoluettelo[],5,FALSE),\"\")","v":"Yksittäinen"},{"$f":"IFERROR(VLOOKUP(Varastopoimintaluettelo[VARASTOINTIYKSIKKÖ],Varastoluettelo[],3,FALSE),\"\")","v":"T349"},{"$f":"IFERROR(VLOOKUP(Varastopoimintaluettelo[VARASTOINTIYKSIKKÖ],Varastoluettelo[],4,FALSE),\"\")","v":"Rivi 1, paikka 2"}]
[null,"TP001-1","TS3456",6,{"$f":"IFERROR(VLOOKUP(Varastopoimintaluettelo[VARASTOINTIYKSIKKÖ],Varastoluettelo[],6,FALSE),\"\")","v":15},{"$f":"IFERROR(VLOOKUP(Varastopoimintaluettelo[VARASTOINTIYKSIKKÖ],Varastoluettelo[],2,FALSE),\"\")","v":"Nimike 10"},{"$f":"IFERROR(VLOOKUP(Varastopoimintaluettelo[VARASTOINTIYKSIKKÖ],Varastoluettelo[],5,FALSE),\"\")","v":"Yksittäinen"},{"$f":"IFERROR(VLOOKUP(Varastopoimintaluettelo[VARASTOINTIYKSIKKÖ],Varastoluettelo[],3,FALSE),\"\")","v":"T349"},{"$f":"IFERROR(VLOOKUP(Varastopoimintaluettelo[VARASTOINTIYKSIKKÖ],Varastoluettelo[],4,FALSE),\"\")","v":"Rivi 1, paikka 2"}]
[null,"TP001-1","MK676554",3,{"$f":"IFERROR(VLOOKUP(Varastopoimintaluettelo[VARASTOINTIYKSIKKÖ],Varastoluettelo[],6,FALSE),\"\")","v":10},{"$f":"IFERROR(VLOOKUP(Varastopoimintaluettelo[VARASTOINTIYKSIKKÖ],Varastoluettelo[],2,FALSE),\"\")","v":"Nimike 3"},{"$f":"IFERROR(VLOOKUP(Varastopoimintaluettelo[VARASTOINTIYKSIKKÖ],Varastoluettelo[],5,FALSE),\"\")","v":"Yksittäinen"},{"$f":"IFERROR(VLOOKUP(Varastopoimintaluettelo[VARASTOINTIYKSIKKÖ],Varastoluettelo[],3,FALSE),\"\")","v":"T5789"},{"$f":"IFERROR(VLOOKUP(Varastopoimintaluettelo[VARASTOINTIYKSIKKÖ],Varastoluettelo[],4,FALSE),\"\")","v":"Rivi 1, paikka 1"}]

{"sheet":"Paikkahaku","index":2,"n_rows":11,"n_cols":7,"rows_kept":11,"cut":false,"hidden":false,"merged":[]}
[null,"PAIKKAHAKU"]
[null,"VARASTOLUETTELO"]
[]
[null,"PAIKKANRO","KUVAUS","SIJAINTI","LEVEYS","KORKEUS","PITUUS"]
[null,"T345","Suuri varastopaikka","Rivi 2, paikka 1",50,10,10]
[null,"T5789","Pieni varastopaikka","Rivi 1, paikka 1",25,5,5]
[null,"T9876","Suuri varastopaikka","Rivi 3, paikka 2",50,10,10]
[null,"T098","Normaali varastopaikka","Rivi 3, paikka 1",30,7,10]
[null,"T349","Pieni varastopaikka","Rivi 1, paikka 2",25,5,5]
[null,"T5789","Suuri varastopaikka","Rivi 4, paikka 5",50,10,10]
[null,"T9875","Suuri varastopaikka","Rivi 2, paikka 2",50,10,10]